bitfinex-derivatives/quotes_BTCF0:USTF0_20250510
["timestamp","ask_amount","ask_price","bid_price","bid_amount"]
[1746899250785,1.7915175,103530.0,103520.0,0.03330005]
[1746899251078,1.8015175,103530.0,103520.0,0.03330005]
[1746899251579,1.7915175,103530.0,103520.0,0.03330005]
[1746899251778,0.1931703,103520.0,103510.0,0.031]
[1746899252083,0.8935961,103520.0,103510.0,0.041]
[1746899252382,0.8935961,103520.0,103510.0,0.05594391]
[1746899252581,0.6503703,103520.0,103510.0,0.05594391]
[1746899252983,0.8935961,103520.0,103510.0,0.05594391]
[1746899253179,0.8995961,103520.0,103510.0,0.22194391]
[1746899254180,0.9045961,103520.0,103510.0,0.22194391]
[1746899254779,0.9065961,103520.0,103510.0,0.22194391]
[1746899255074,0.9065961,103520.0,103510.0,0.25254391]
[1746899255677,0.9085961,103520.0,103510.0,0.25254391]
[1746899256281,0.9005961,103520.0,103510.0,0.25254391]
[1746899256582,0.9085961,103520.0,103510.0,0.19094391]
[1746899257378,0.9085961,103520.0,103510.0,0.22244391]
[1746899257989,0.9085961,103520.0,103510.0,0.16201081]
[1746899258290,0.9085961,103520.0,103510.0,0.01]
[1746899258582,0.193189,103510.0,103500.0,0.0315]
[1746899258784,0.8905148,103510.0,103500.0,0.04]
[1746899259986,0.7749019,103510.0,103500.0,0.04]
[1746899260886,0.7799019,103510.0,103500.0,0.04]
[1746899261390,0.658289,103510.0,103500.0,0.04]
[1746899261684,0.7799019,103510.0,103500.0,0.135]
[1746899262186,0.7799019,103510.0,103500.0,0.301]
[1746899263184,0.627889,103510.0,103500.0,0.301]
[1746899263487,0.9353019,103510.0,103500.0,0.301]
[1746899263682,0.7495019,103510.0,103500.0,0.301]
[1746899263882,0.9353019,103510.0,103500.0,0.301]
[1746899264885,0.7495019,103510.0,103500.0,0.301]
[1746899265091,0.9352219,103510.0,103500.0,0.301]
[1746899265591,0.9448819,103510.0,103500.0,0.301]
[1746899265890,0.7591619,103510.0,103500.0,0.301]
[1746899266080,0.9448419,103510.0,103500.0,0.301]
[1746899269090,0.606849,103510.0,103500.0,0.301]
[1746899269395,0.606849,103510.0,103500.0,0.6158206]
[1746899269581,0.792329,103510.0,103500.0,0.6158206]
[1746899269782,0.431529,103510.0,103500.0,0.9766206]
[1746899271984,0.431529,103510.0,103500.0,0.8550077]
[1746899274893,0.9139419,103510.0,103500.0,0.4942077]
[1746899275283,0.792329,103510.0,103500.0,0.4942077]
[1746899275791,0.606849,103510.0,103500.0,0.4942077]
[1746899278193,0.246049,103510.0,103500.0,0.4942077]
[1746899278593,0.606849,103510.0,103500.0,0.4942077]
[1746899279795,0.601849,103510.0,103500.0,0.4942077]
[1746899279998,0.604849,103510.0,103500.0,0.4942077]
[1746899281094,0.603849,103510.0,103500.0,0.4942077]
[1746899281295,0.7254619,103510.0,103500.0,0.4942077]
[1746899281488,0.603849,103510.0,103500.0,0.4942077]
[1746899281692,0.7562619,103510.0,103500.0,0.301]
[1746899281994,0.44146,103510.0,103450.0,1.2509922]
[1746899282286,0.5540824,103460.0,103450.0,0.14]
[1746899282492,0.5540824,103460.0,103450.0,0.40988846]
[1746899282797,0.6179824,103460.0,103450.0,0.41511272]
[1746899283298,0.7937078,103460.0,103450.0,0.41511272]
[1746899283494,1.0369336,103460.0,103450.0,0.41511272]
[1746899283698,0.34286528,103450.0,103440.0,0.24995372]
[1746899283991,0.1933384,103430.0,103420.0,0.48518831]
[1746899284195,0.1933384,103430.0,103420.0,0.29518831]
[1746899284196,0.5541384,103430.0,103420.0,0.29518831]
[1746899284403,0.5869384,103430.0,103420.0,0.29518831]
[1746899284700,0.77258124,103430.0,103420.0,0.29518831]
[1746899284888,0.77258124,103430.0,103410.0,0.46081004]
[1746899284889,0.1933571,103420.0,103410.0,0.46081004]
[1746899285091,0.1933571,103420.0,103400.0,0.5591964]
[1746899285295,0.1934132,103390.0,103380.0,0.4193297]
[1746899285490,0.9150132,103390.0,103380.0,0.3093297]
[1746899285989,0.7216,103390.0,103380.0,0.39601812]
[1746899286193,1.0810132,103390.0,103380.0,0.5993297]
[1746899286497,1.0810132,103390.0,103380.0,0.2993297]
[1746899286702,1.0810132,103390.0,103380.0,0.3793297]
[1746899286997,1.1777372,103390.0,103380.0,0.0856809]
[1746899287194,1.1777372,103390.0,103360.0,0.11]
[1746899287195,0.3294102,103360.0,103350.0,0.4407999]
[1746899287397,0.1934881,103350.0,103340.0,0.39358441]
[1746899287601,0.5542881,103350.0,103340.0,0.31990141]
[1746899287899,0.6510521,103350.0,103340.0,0.38403304]
[1746899288101,0.9010521,103350.0,103340.0,0.10766044]
[1746899288296,0.1935068,103340.0,103330.0,0.51286519]
[1746899288494,0.6355835,103340.0,103330.0,0.26656999]
[1746899288992,0.3608,103340.0,103330.0,0.33936999]
[1746899289192,0.5268,103340.0,103330.0,0.56399549]
[1746899289392,0.3595068,103340.0,103330.0,0.34046999]
[1746899289597,0.166,103340.0,103330.0,0.64046999]
[1746899289791,0.166,103340.0,103330.0,1.01126999]
[1746899290099,0.166,103340.0,103330.0,0.97126999]
[1746899290500,0.166,103340.0,103330.0,0.61046999]
[1746899290696,0.5268,103340.0,103330.0,0.38046999]
[1746899290890,0.5268,103340.0,103330.0,0.0939]
[1746899291099,0.3618,103340.0,103330.0,0.55019813]
[1746899291297,0.3628,103340.0,103330.0,0.55019813]
[1746899291498,0.3628,103340.0,103330.0,0.2599]
[1746899291801,0.6837788,103340.0,103330.0,0.206]
[1746899291995,0.1935255,103330.0,103320.0,0.00396806]
[1746899292298,0.6170255,103330.0,103320.0,0.10074069]
[1746899292712,0.6170255,103330.0,103320.0,0.00396806]
[1746899292998,0.90866569,103330.0,103320.0,0.00396806]
[1746899293207,1.26819119,103330.0,103320.0,0.00396806]
[1746899293502,1.61497119,103330.0,103320.0,0.00396806]
[1746899293702,0.1935443,103320.0,103310.0,0.00757303]
[1746899293893,0.6204443,103320.0,103310.0,0.00757303]
[1746899294098,0.7864443,103320.0,103310.0,0.00757303]
[1746899294994,0.7874443,103320.0,103310.0,0.00757303]
[1746899295195,0.1935748,103310.0,103290.0,0.21740895]
[1746899295395,0.3608,103300.0,103290.0,0.23740895]
[1746899295594,0.0332,103300.0,103290.0,0.23740895]
[1746899295796,0.3608,103310.0,103300.0,0.1935817]
[1746899296001,0.93536225,103320.0,103310.0,0.193563]
[1746899296002,0.57456225,103320.0,103310.0,0.193563]
[1746899296201,0.57456225,103320.0,103310.0,0.284063]
[1746899296399,0.60776225,103320.0,103310.0,0.254063]
[1746899296710,1.00066225,103320.0,103310.0,0.0605]
[1746899296894,1.19420655,103320.0,103310.0,0.03]
[1746899297099,1.19320655,103320.0,103310.0,0.196]
[1746899297294,1.10580999,103320.0,103300.0,0.2256783]
[1746899297505,0.3608,103310.0,103300.0,0.15468608]
[1746899297804,1.10580999,103320.0,103310.0,0.193563]
[1746899297805,0.88116569,103320.0,103310.0,0.193563]
[1746899298107,0.55146569,103320.0,103310.0,0.359563]
[1746899298309,0.55046569,103320.0,103310.0,0.730363]
[1746899298606,0.55846569,103320.0,103310.0,0.401463]
[1746899298812,0.88816569,103320.0,103310.0,0.00622827]
[1746899299005,1.11260999,103320.0,103310.0,0.223563]
[1746899299196,1.11260999,103320.0,103310.0,0.196]
[1746899299398,1.11260999,103320.0,103310.0,0.389563]
[1746899299595,1.35679613,103320.0,103310.0,0.389563]
[1746899299903,1.11260999,103320.0,103310.0,0.196]
[1746899300298,1.11260999,103320.0,103300.0,0.01285938]
[1746899300503,0.3608,103310.0,103300.0,0.2335757]
[1746899301000,0.554363,103310.0,103300.0,0.04]
[1746899301196,0.585263,103310.0,103300.0,0.206]
[1746899301397,0.615263,103310.0,103300.0,0.206]
[1746899301606,0.66588614,103310.0,103270.0,1.5684477]
[1746899301800,0.5544087,103290.0,103270.0,2.0920797]
[1746899302007,0.5544087,103290.0,103280.0,0.0302]
[1746899302196,0.79859484,103290.0,103280.0,0.2062]
[1746899302396,0.6172087,103290.0,103280.0,0.2062]
[1746899302603,0.6172087,103290.0,103280.0,0.16730905]
[1746899303007,0.86139484,103290.0,103280.0,0.16730905]
[1746899303197,0.6172087,103290.0,103280.0,0.00130905]
[1746899303605,0.86139484,103290.0,103280.0,0.00130905]
[1746899303897,1.08451988,103290.0,103280.0,0.00130905]
[1746899304113,1.32870602,103290.0,103280.0,0.00130905]
[1746899304408,1.08451988,103290.0,103280.0,0.01]
[1746899304623,1.08551988,103290.0,103280.0,0.2036192]
[1746899305106,0.53011118,103290.0,103280.0,0.5644192]
[1746899305301,0.55896569,103290.0,103280.0,0.5844192]
[1746899305705,0.49016569,103290.0,103280.0,0.6171192]
[1746899305905,0.49016569,103290.0,103280.0,1.29393919]
[1746899306211,0.44026569,103290.0,103280.0,1.63439945]
[1746899306514,0.0328,103310.0,103300.0,0.1935817]
[1746899306710,0.0328,103310.0,103300.0,0.5913817]
[1746899306913,0.259663,103310.0,103300.0,0.6240817]
[1746899307216,0.0661,103310.0,103300.0,0.3955817]
[1746899307513,0.44919656,103340.0,103330.0,0.1905255]
[1746899307721,0.67600336,103340.0,103320.0,0.35107897]
[1746899308010,0.67600336,103340.0,103330.0,0.2212255]
[1746899308213,0.70650336,103340.0,103330.0,0.2512255]
[1746899308514,0.9506895,103340.0,103330.0,0.2682255]
[1746899308708,0.70650336,103340.0,103330.0,0.2482255]
[1746899308915,0.86229294,103340.0,103330.0,0.2482255]
[1746899309111,0.6181068,103340.0,103330.0,0.04710407]
[1746899309308,0.0305,103340.0,103330.0,0.69142957]
[1746899309500,0.0305,103340.0,103330.0,0.62142957]
[1746899309705,0.5848068,103340.0,103330.0,0.06710407]
[1746899309909,0.86599294,103340.0,103330.0,0.06810407]
[1746899310105,0.6258068,103340.0,103330.0,0.06810407]
[1746899310313,0.0415,103340.0,103330.0,0.70242957]
[1746899310521,0.2350068,103340.0,103330.0,0.62242957]
[1746899310813,0.83319294,103340.0,103330.0,0.051]
[1746899311116,0.2590068,103340.0,103330.0,0.5978]
[1746899311314,0.0655,103340.0,103330.0,0.8231255]
[1746899311510,0.005,103340.0,103330.0,1.0231255]
[1746899311711,0.26519917,103340.0,103330.0,1.0231255]
[1746899311908,0.26519917,103340.0,103330.0,0.864482]
[1746899312113,0.26519917,103340.0,103330.0,1.21544077]
[1746899312313,0.26519917,103340.0,103330.0,1.59241277]
[1746899312619,0.004,103350.0,103340.0,0.1935068]
[1746899312815,0.004,103350.0,103340.0,1.53979294]
[1746899313117,0.2059936,103380.0,103370.0,0.1934507]
[1746899313314,0.2364936,103380.0,103370.0,0.5942507]
[1746899313619,0.01255,103380.0,103370.0,1.47647284]
[1746899313918,0.01255,103380.0,103370.0,1.56904996]
[1746899314115,0.2059819,103380.0,103370.0,1.54504996]
[1746899314305,0.2059819,103380.0,103370.0,1.44831396]
[1746899314511,0.2059819,103380.0,103370.0,1.25486326]
[1746899314710,0.2059819,103380.0,103370.0,1.25686326]
[1746899315117,0.5667819,103380.0,103370.0,0.6093]
[1746899315513,0.45512767,103380.0,103370.0,0.46122785]
[1746899315719,0.45512767,103380.0,103370.0,0.48127219]
[1746899315918,0.48822767,103380.0,103370.0,0.84207219]
[1746899316117,0.48822767,103380.0,103370.0,0.48127219]
[1746899316409,0.48822767,103380.0,103370.0,0.84607219]
[1746899316609,0.75631801,103380.0,103370.0,0.82284434]
[1746899316810,1.42711801,103380.0,103370.0,0.24004434]
[1746899317013,1.67230415,103380.0,103370.0,0.24704434]
[1746899317220,1.67230415,103380.0,103350.0,0.19]
[1746899317221,0.1934694,103360.0,103350.0,0.19]
[1746899317419,0.5542694,103360.0,103350.0,0.3]
[1746899317714,0.6183694,103360.0,103350.0,0.3]
[1746899317917,0.8383694,103360.0,103350.0,0.3]
[1746899318105,0.8383694,103360.0,103350.0,0.466]
[1746899318310,0.6183694,103360.0,103350.0,0.71018614]
[1746899318516,0.5852694,103360.0,103350.0,0.71018614]
[1746899318717,0.5862694,103360.0,103350.0,0.78008614]
[1746899318920,0.5862694,103360.0,103350.0,0.5389]
[1746899319122,0.5862694,103360.0,103350.0,0.78308614]
[1746899319322,1.21628892,103360.0,103350.0,0.78308614]
[1746899319614,0.63101952,103360.0,103350.0,1.22014942]
[1746899319816,0.82448892,103360.0,103350.0,1.02666132]
[1746899320027,0.82448892,103360.0,103350.0,0.78247518]
[1746899320218,0.82448892,103360.0,103350.0,1.02666132]
[1746899320413,0.82448892,103360.0,103350.0,1.05466132]
[1746899320820,0.82448892,103360.0,103350.0,0.81047518]
[1746899321021,0.82448892,103360.0,103350.0,1.05466132]
[1746899321318,0.82448892,103360.0,103350.0,0.3157539]
[1746899321520,0.85538892,103360.0,103350.0,0.52994004]
[1746899321828,0.88738892,103360.0,103350.0,0.187]
[1746899322333,0.88738892,103360.0,103350.0,0.59718614]
[1746899322517,0.88738892,103360.0,103350.0,0.353]
[1746899322824,0.91551548,103360.0,103350.0,0.10616649]
[1746899323025,0.91551548,103360.0,103350.0,0.63035263]
[1746899323412,0.91551548,103360.0,103350.0,0.38816649]
[1746899323826,0.91551548,103360.0,103350.0,0.63235263]
[1746899324534,1.27631548,103360.0,103350.0,0.66305263]
[1746899324720,1.27631548,103360.0,103350.0,0.17905919]
[1746899324920,1.27631548,103360.0,103350.0,0.36905919]
[1746899325121,1.27631548,103360.0,103350.0,0.53505919]
[1746899325323,1.27631548,103360.0,103350.0,0.3867]
[1746899325832,1.24431548,103360.0,103350.0,1.08764004]
[1746899326127,1.24431548,103360.0,103350.0,0.85444004]
[1746899326330,1.02526971,103360.0,103350.0,0.85444004]
[1746899326535,1.06603971,103360.0,103350.0,0.85444004]
[1746899327434,1.06603971,103360.0,103350.0,1.04792814]
[1746899328322,1.06603971,103360.0,103350.0,1.08092814]
[1746899328522,1.06603971,103360.0,103350.0,0.836742]
[1746899328818,1.06603971,103360.0,103350.0,1.08092814]
[1746899329017,1.06603971,103360.0,103350.0,0.6432539]
[1746899329227,1.06603971,103360.0,103350.0,0.5232539]
[1746899329526,1.26074796,103360.0,103350.0,0.716742]
[1746899329829,1.26074796,103360.0,103350.0,0.6225539]
[1746899330020,1.26074796,103360.0,103350.0,1.06022814]
[1746899330421,1.26074796,103360.0,103350.0,0.816042]
[1746899330826,1.26074796,103360.0,103350.0,1.06022814]
[1746899331525,0.72296383,103360.0,103350.0,0.816042]
[1746899331720,0.72296383,103360.0,103350.0,0.79527972]
[1746899331921,0.72296383,103360.0,103350.0,0.98203362]
[1746899332124,0.72296383,103360.0,103350.0,0.90384748]
[1746899332328,0.72296383,103360.0,103350.0,1.14803362]
[1746899332522,0.72296383,103360.0,103350.0,0.90384748]
[1746899332730,0.72296383,103360.0,103350.0,1.14803362]
[1746899332928,0.72296383,103360.0,103350.0,1.16123362]
[1746899333130,0.72296383,103360.0,103350.0,0.91704748]
[1746899333633,0.72296383,103360.0,103350.0,1.16123362]
[1746899334233,0.72296383,103360.0,103350.0,0.969442]
[1746899334437,0.72296383,103360.0,103350.0,0.879442]
[1746899334735,1.08376383,103360.0,103350.0,0.879442]
[1746899335236,1.08376383,103360.0,103350.0,1.12362814]
[1746899335430,1.25445984,103360.0,103350.0,0.879442]
[1746899335633,1.25445984,103360.0,103350.0,1.12362814]
[1746899335832,1.25445984,103360.0,103350.0,0.879442]
[1746899336226,1.25445984,103360.0,103350.0,1.06519845]
[1746899336428,1.25445984,103360.0,103350.0,1.2509549]
[1746899336629,1.25445984,103360.0,103350.0,0.879442]
[1746899336837,1.25445984,103360.0,103350.0,1.06519845]
[1746899337133,1.25445984,103360.0,103350.0,0.85851035]
[1746899337333,1.25445984,103360.0,103350.0,0.866242]
[1746899337530,1.25445984,103360.0,103350.0,0.576]
[1746899337745,1.45021629,103360.0,103350.0,0.346]
[1746899337941,0.1934881,103350.0,103340.0,0.01901175]
[1746899338241,0.1935068,103340.0,103330.0,0.20773275]
[1746899338535,0.1935068,103340.0,103330.0,0.73396788]
[1746899338536,0.5851068,103340.0,103330.0,0.73396788]
[1746899338741,0.2243068,103340.0,103330.0,0.95032433]
[1746899339129,0.2243068,103340.0,103330.0,0.93056788]
[1746899339335,0.0308,103340.0,103330.0,1.54629633]
[1746899339536,0.5552881,103350.0,103340.0,0.1935068]
[1746899339727,0.3618,103350.0,103340.0,0.9873068]
[1746899340041,0.5562881,103350.0,103340.0,0.9873068]
[1746899340236,0.5562881,103350.0,103340.0,1.00627943]
[1746899340425,0.5856881,103350.0,103340.0,0.86527943]
[1746899340739,1.19145984,103360.0,103350.0,0.1924881]
[1746899340942,1.19145984,103360.0,103350.0,0.6962881]
[1746899341239,1.35553849,103360.0,103350.0,0.8612881]
[1746899341438,1.35553849,103360.0,103350.0,0.957042]
[1746899341638,1.35553849,103360.0,103350.0,0.6927539]
[1746899341941,1.66553849,103360.0,103350.0,0.216]
[1746899342151,1.66553849,103360.0,103350.0,0.05]
[1746899342640,0.1934881,103350.0,103340.0,0.168]
[1746899342835,0.9656881,103350.0,103340.0,0.358]
[1746899343041,1.15144455,103350.0,103340.0,0.168]
[1746899343239,1.2640859,103350.0,103330.0,0.01420725]
[1746899343439,0.1935443,103320.0,103310.0,0.22865645]
[1746899343736,0.5543443,103320.0,103310.0,0.78432626]
[1746899343941,0.5543443,103320.0,103310.0,0.59076326]
[1746899344143,0.5543443,103320.0,103310.0,0.596]
[1746899344440,0.9151443,103320.0,103310.0,1.03362365]
[1746899344739,1.2771443,103320.0,103310.0,1.04362365]
[1746899344937,0.9171443,103320.0,103310.0,0.85006065]
[1746899345138,0.9171443,103320.0,103310.0,0.862463]
[1746899345640,0.9171443,103320.0,103310.0,1.12537826]
[1746899345827,0.9490443,103320.0,103310.0,0.88131761]
[1746899346443,0.9822443,103320.0,103310.0,0.88131761]
[1746899346632,0.9822443,103320.0,103310.0,0.89588806]
[1746899347244,0.9822443,103320.0,103310.0,1.13594871]
[1746899347536,1.19922875,103320.0,103310.0,0.89188806]
[1746899347748,1.19922875,103320.0,103310.0,1.13594871]
[1746899348040,1.19922875,103320.0,103310.0,1.07304871]
[1746899348234,1.19922875,103320.0,103310.0,0.82898806]
[1746899348434,1.19922875,103320.0,103310.0,0.89308806]
[1746899348631,1.19922875,103320.0,103310.0,0.69952506]
[1746899348833,1.58992875,103320.0,103310.0,0.41542506]
[1746899349744,1.58992875,103320.0,103310.0,0.39657045]
[1746899349947,1.58992875,103320.0,103310.0,0.24657045]
[1746899350240,1.58992875,103320.0,103310.0,0.232]
[1746899350542,0.1935817,103300.0,103290.0,0.01836097]
[1746899350745,1.2751817,103300.0,103290.0,0.22836097]
[1746899350932,1.3695817,103300.0,103290.0,0.22836097]
[1746899351938,0.1936192,103280.0,103270.0,0.4220397]
[1746899352239,1.0120332,103280.0,103270.0,0.93211092]
[1746899352539,1.0756332,103280.0,103270.0,0.49441227]
[1746899352740,1.0756332,103280.0,103270.0,0.98863534]
[1746899352937,1.0756332,103280.0,103270.0,1.06077469]
[1746899352938,0.9788192,103280.0,103270.0,1.06077469]
[1746899353248,0.9788192,103280.0,103270.0,1.31989865]
[1746899353430,0.6180192,103280.0,103270.0,1.075838]
[1746899353940,0.6190192,103280.0,103270.0,0.8822]
[1746899354137,0.6190192,103280.0,103270.0,0.6822]
[1746899354338,0.6200192,103280.0,103270.0,0.69697241]
[1746899354644,0.9600192,103280.0,103270.0,0.69697241]
[1746899354831,0.9600192,103280.0,103270.0,0.63077241]
[1746899355745,0.6200192,103280.0,103270.0,0.616]
[1746899355941,0.83729615,103280.0,103270.0,0.68051802]
[1746899356144,0.83729615,103280.0,103270.0,0.74281802]
[1746899356442,0.22097695,103280.0,103270.0,1.25093932]
[1746899356643,0.22097695,103280.0,103270.0,1.73917867]
[1746899356838,0.22097695,103280.0,103270.0,1.49511802]
[1746899357040,0.18847695,103280.0,103270.0,1.59194687]
[1746899357641,0.18847695,103280.0,103270.0,2.42689617]
[1746899357846,0.12171442,103290.0,103280.0,0.1936192]
[1746899358046,0.12171442,103290.0,103280.0,1.8251405]
[1746899358241,0.2247664,103310.0,103300.0,0.1935817]
[1746899358435,0.41975255,103320.0,103310.0,0.193563]
[1746899358737,0.19470825,103320.0,103310.0,1.376963]
[1746899358942,0.19470825,103320.0,103310.0,1.57057448]
[1746899359238,0.19470825,103320.0,103310.0,1.98063513]
[1746899359448,0.19470825,103320.0,103310.0,1.73557448]
[1746899359646,0.19470825,103320.0,103310.0,2.07963513]
[1746899360048,0.19470825,103320.0,103310.0,1.83457448]
[1746899360345,0.49925255,103320.0,103310.0,1.23948248]
[1746899360551,0.89295255,103320.0,103310.0,0.73797111]
[1746899360851,0.89295255,103320.0,103310.0,0.64115163]
[1746899361053,0.89295255,103320.0,103310.0,0.60885163]
[1746899361251,0.89295255,103320.0,103310.0,0.34655163]
[1746899361438,1.1677132,103320.0,103310.0,0.34655163]
[1746899361641,0.92365255,103320.0,103310.0,0.34655163]
[1746899362143,0.36930825,103320.0,103310.0,0.75417528]
[1746899362349,0.42215255,103320.0,103310.0,1.85906664]
[1746899362542,0.30459183,103320.0,103310.0,1.61500599]
[1746899363046,0.27169183,103320.0,103310.0,1.61400599]
[1746899363444,0.30359183,103320.0,103310.0,1.85806664]
[1746899363637,0.27169183,103320.0,103310.0,1.85806664]
[1746899363838,0.26969183,103320.0,103310.0,1.85806664]
[1746899364039,0.26969183,103320.0,103310.0,1.61400599]
[1746899364437,0.54565248,103320.0,103310.0,0.77964299]
[1746899364642,0.93825248,103320.0,103310.0,0.68285163]
[1746899364843,0.95825248,103320.0,103310.0,0.65055163]
[1746899365141,1.28825248,103320.0,103310.0,0.65055163]
[1746899365340,1.28825248,103320.0,103310.0,0.31955163]
[1746899365537,1.28625248,103320.0,103310.0,0.40955163]
[1746899365742,1.29425248,103320.0,103310.0,0.40955163]
[1746899365951,1.22010495,103320.0,103310.0,0.40655163]
[1746899366147,1.32263499,103320.0,103310.0,0.40755163]
[1746899366345,1.31463499,103320.0,103310.0,0.40755163]
[1746899366548,1.32063499,103320.0,103310.0,0.40855163]
[1746899366946,1.32063499,103320.0,103310.0,0.23570096]
[1746899367850,1.07657434,103320.0,103310.0,0.23570096]
[1746899368051,0.9790443,103320.0,103310.0,0.23570096]
[1746899369052,1.22310495,103320.0,103310.0,0.23570096]
[1746899370153,0.9790443,103320.0,103310.0,0.23570096]
[1746899370350,1.22310495,103320.0,103310.0,0.23570096]
[1746899371960,1.22310495,103320.0,103310.0,0.26640096]
[1746899372254,0.9790443,103320.0,103310.0,0.26640096]
[1746899372442,1.33560897,103320.0,103310.0,0.09350743]
[1746899373156,1.33560897,103320.0,103310.0,0.2777895]
[1746899373343,1.57966962,103320.0,103310.0,0.01828207]
[1746899373543,0.1935817,103300.0,103290.0,0.0319]
[1746899373747,1.52924235,103300.0,103290.0,0.35005219]
[1746899373961,1.3469817,103300.0,103290.0,0.35005219]
[1746899374250,1.59104235,103300.0,103290.0,0.28605219]
[1746899374450,1.3469817,103300.0,103290.0,0.21415219]
[1746899374653,1.59104235,103300.0,103290.0,0.21415219]
[1746899374860,1.59404235,103300.0,103290.0,0.21515219]
[1746899375246,1.3499817,103300.0,103290.0,0.21515219]
[1746899375451,1.59104235,103300.0,103290.0,0.21415219]
[1746899375761,1.60104235,103300.0,103290.0,0.21415219]
[1746899375955,1.3569817,103300.0,103290.0,0.47775269]
[1746899376156,0.9251817,103300.0,103290.0,1.04315269]
[1746899376556,0.01,103300.0,103290.0,1.50076279]
[1746899376755,0.2035817,103300.0,103290.0,1.50076279]
[1746899377057,0.2135817,103300.0,103290.0,1.50176279]
[1746899377358,0.2035817,103300.0,103290.0,1.50176279]
[1746899377556,0.2145817,103300.0,103290.0,1.50176279]
[1746899378153,0.2035817,103300.0,103290.0,1.50176279]
[1746899378352,0.2085817,103300.0,103290.0,1.30816229]
[1746899378551,0.59264235,103300.0,103290.0,0.99816229]
[1746899378751,0.3803817,103300.0,103290.0,0.90135219]
[1746899379062,0.4040817,103300.0,103290.0,0.90135219]
[1746899379257,0.5909739,103300.0,103290.0,0.72036086]
[1746899379560,1.1217739,103300.0,103290.0,0.10509382]
[1746899379747,1.36583455,103300.0,103290.0,0.10509382]
[1746899379947,1.46264655,103300.0,103290.0,0.10509382]
[1746899380348,1.2185859,103300.0,103290.0,0.05509382]
[1746899380550,1.46264655,103300.0,103290.0,0.05509382]
[1746899380756,1.2185859,103300.0,103290.0,0.03696086]
[1746899381162,1.19412683,103300.0,103290.0,0.001]
[1746899381355,1.43818748,103300.0,103290.0,0.001]
[1746899381857,1.09731483,103300.0,103290.0,0.001]
[1746899382049,1.10682263,103300.0,103290.0,0.167]
[1746899382450,0.1936192,103280.0,103270.0,0.03355021]
[1746899382759,0.1936192,103280.0,103270.0,0.33355021]
[1746899382760,0.9344192,103280.0,103270.0,0.33355021]
[1746899382952,0.9344192,103280.0,103270.0,0.31428121]
[1746899383163,0.9981192,103280.0,103270.0,0.54188121]
[1746899383553,0.9981192,103280.0,103270.0,0.55962661]
[1746899383754,0.9991192,103280.0,103270.0,0.52872661]
[1746899383953,1.0001192,103280.0,103270.0,0.52872661]
[1746899384159,1.16255233,103280.0,103270.0,0.52872661]
[1746899384360,1.16255233,103280.0,103270.0,0.72236461]
[1746899384658,0.46175233,103280.0,103270.0,1.11646461]
[1746899384862,0.42175233,103280.0,103270.0,1.11646461]
[1746899385056,0.42175233,103280.0,103270.0,0.75566461]
[1746899386056,0.42175233,103280.0,103270.0,1.11646461]
[1746899386255,0.38915233,103280.0,103270.0,1.36052526]
[1746899386456,0.38915233,103280.0,103270.0,1.41646461]
[1746899386759,0.38915233,103280.0,103270.0,1.41683838]
[1746899387064,0.35805233,103280.0,103270.0,1.41683838]
[1746899387558,0.16443313,103280.0,103270.0,1.77772788]
[1746899387757,0.16443313,103280.0,103270.0,1.87455588]
[1746899387967,0.16443313,103280.0,103270.0,1.97455588]
[1746899388163,0.16443313,103280.0,103270.0,1.87455588]
[1746899388459,0.16443313,103280.0,103270.0,1.97455588]
[1746899388664,0.16443313,103280.0,103270.0,1.73049523]
[1746899388860,0.16443313,103280.0,103270.0,1.63366723]
[1746899389063,0.36773233,103280.0,103270.0,1.55772788]
[1746899389256,0.36773233,103280.0,103270.0,1.31366723]
[1746899389463,0.36773233,103280.0,103270.0,1.55772788]
[1746899389657,0.36773233,103280.0,103270.0,1.31366723]
[1746899389968,0.36773233,103280.0,103270.0,1.55772788]
[1746899390670,0.36773233,103280.0,103270.0,1.31366723]
[1746899390860,0.36773233,103280.0,103270.0,1.55772788]
[1746899391471,0.36773233,103280.0,103270.0,1.26366723]
[1746899391767,0.01168,103280.0,103270.0,1.50772788]
[1746899392270,0.01168,103280.0,103270.0,1.77772788]
[1746899392470,0.2052992,103280.0,103270.0,1.53366723]
[1746899392669,0.2052992,103280.0,103270.0,1.35366723]
[1746899392863,0.2052992,103280.0,103270.0,1.59772788]
[1746899393865,0.01168,103280.0,103270.0,1.78772788]
[1746899394055,0.01168,103280.0,103270.0,1.98455588]
[1746899394261,0.12241726,103290.0,103280.0,0.1936192]
[1746899394461,0.12241726,103290.0,103280.0,1.9198405]
[1746899394763,0.12241726,103290.0,103280.0,1.62853919]
[1746899394964,0.12241726,103290.0,103280.0,1.72536804]
[1746899395160,0.34045823,103300.0,103290.0,0.1936005]
[1746899395161,0.14687633,103300.0,103290.0,0.1936005]
[1746899395367,0.14687633,103300.0,103290.0,1.67296115]
[1746899395569,0.14687633,103300.0,103290.0,1.4289005]
[1746899395871,0.14687633,103300.0,103290.0,1.52171998]
[1746899396168,0.14687633,103300.0,103290.0,1.93178063]
[1746899396370,0.14787633,103300.0,103290.0,1.95332323]
[1746899396572,0.14887633,103300.0,103290.0,1.95332323]
[1746899396868,0.14887633,103300.0,103290.0,2.05332323]
[1746899397268,0.14887633,103300.0,103290.0,2.15013523]
[1746899397468,0.14887633,103300.0,103290.0,1.90607458]
[1746899397668,0.14887633,103300.0,103290.0,2.15013523]
[1746899398260,0.16457391,103300.0,103290.0,2.15013523]
[1746899399668,0.27428424,103330.0,103320.0,0.1935443]
[1746899399867,0.46780974,103330.0,103320.0,1.51840495]
[1746899400172,0.27428424,103330.0,103320.0,1.87910495]
[1746899400471,0.27428424,103330.0,103320.0,1.97591505]
[1746899400772,0.27428424,103330.0,103320.0,2.07269505]
[1746899400972,0.46780974,103330.0,103320.0,1.99115747]
[1746899401163,0.46780974,103330.0,103320.0,1.65031682]
[1746899401360,0.47380974,103330.0,103320.0,1.46131682]
[1746899401673,0.47380974,103330.0,103320.0,1.60856737]
[1746899401971,0.2005255,103330.0,103320.0,1.70434936]
[1746899402167,0.007,103330.0,103320.0,1.70434936]
[1746899402368,0.2005255,103330.0,103320.0,1.70434936]
[1746899402569,0.1945255,103330.0,103320.0,1.70434936]
[1746899402772,0.1955255,103330.0,103320.0,1.70534936]
[1746899402971,0.002,103330.0,103320.0,1.70534936]
[1746899403172,0.00967,103340.0,103330.0,0.1935255]
[1746899403368,0.00967,103340.0,103330.0,1.72148615]
[1746899403765,0.00967,103340.0,103330.0,1.91504014]
[1746899404273,0.00967,103340.0,103330.0,2.08104014]
[1746899404672,0.01067,103340.0,103330.0,2.08104014]
[1746899405072,0.01267,103340.0,103330.0,2.08204014]
[1746899405563,0.01267,103340.0,103330.0,2.09664481]
[1746899405564,0.11054538,103340.0,103330.0,2.09664481]
[1746899405766,0.10854538,103340.0,103330.0,2.09664481]